fUST/lending_fUST_20240416
["ID","MTS","AMOUNT","RATE_DAILY","PERIOD"]
[322701170,1713225042357,-508.84,0.00031506,7]
[322701171,1713225042366,-581.4265577,0.00031506,4]
[322701172,1713225042375,-500.0,0.00031506,7]
[322701173,1713225042384,-500.0,0.00031506,7]
[322701174,1713225042393,-45504.87460688,0.00031506,30]
[322701183,1713225043857,-500.0,0.00030136,2]
[322701184,1713225043866,-7.3538,0.00031506,30]
[322701192,1713225046698,-722.88737732,0.00030135,4]
[322701193,1713225046762,-343.34316699,0.00030135,4]
[322701194,1713225046772,-215.00993823,0.00030135,4]
[322701195,1713225046781,-500.0,0.00030136,2]
[322701196,1713225046793,-500.0,0.0003041,7]
[322701197,1713225046803,-22.24117113,0.00030684,7]
[322701203,1713225258165,3001.83376503,0.000125,2]
[322701207,1713226034131,-172.97629238,0.00020654,2]
[322701208,1713226034151,-166.85996772,0.00020655,2]
[322701209,1713226034170,-2583.74745148,0.00020753,2]
[322701210,1713226034189,-2007.62821039,0.00020754,2]
[322701211,1713226034207,-205.79653889,0.00020755,2]
[322701212,1713226034228,-355.98303897,0.00020755,2]
[322701213,1713226034248,-525.49067281,0.00020755,2]
[322701214,1713226034267,-300.0,0.00020756,2]
[322701215,1713226034287,-300.0,0.00020756,2]
[322701216,1713226034306,-326.84815688,0.00020756,2]
[322701217,1713226034325,-572.9337927,0.00020759,2]
[322701218,1713226034343,-168.779527,0.00021026,2]
[322701219,1713226034363,-180.4125251,0.00021471,2]
[322701220,1713226034382,-166.85996772,0.00021995,2]
[322701221,1713226034401,-158.76974363,0.00022202,2]
[322701222,1713226034419,-154.86062544,0.000223,2]
[322701223,1713226034438,-154.87609912,0.00022301,2]
[322701224,1713226034456,-453.70601522,0.00022301,2]
[322701225,1713226034477,-11437.66942488,0.00022302,2]
[322701226,1713226156114,-154.86062544,0.00020652,2]
[322701227,1713226156138,-326.84815688,0.00020653,2]
[322701230,1713226163824,797.78849121,0.00022203,2]
[322701231,1713226174179,154.86062544,0.0001784,2]
[322701233,1713226194257,156.23138394,0.0001784,2]
[322701235,1713226216127,150.0,0.00020202,2]
[322701272,1713226231802,-355.98303897,0.00022293,2]
[322701274,1713226231811,-205.79653889,0.00022294,2]
[322701276,1713226231820,-2583.74745148,0.00022294,2]
[322701278,1713226231829,-158.76974363,0.00022295,2]
[322701280,1713226231838,-282.94447767,0.000223,2]
[322701282,1713226231848,-525.49067281,0.000223,2]
[322701284,1713226231858,-519.0311523,0.00022301,2]
[322701286,1713226231867,-300.0,0.00022301,2]
[322701288,1713226231876,-300.0,0.00022301,2]
[322701290,1713226231886,-1635.08252666,0.00022302,2]
[322701349,1713226238007,-45990.91471323,0.00022302,2]
[322701351,1713226238016,-24900.0,0.00022303,2]
[322701353,1713226238025,-166.85996772,0.00023335,2]
[322701355,1713226238034,-420.0,0.00024226,2]
[322701357,1713226238043,-420.0,0.00024531,2]
[322701358,1713226238053,-166.85996772,0.00024675,2]
[322701361,1713226238066,-186.00172497,0.00024898,2]
[322701362,1713226238074,-3980.69778068,0.000249,2]
[322701364,1713226238083,-718.86615281,0.000249,2]
[322701387,1713226238092,-156.98200501,0.00025,2]
[322701390,1713226238295,-599.93513208,0.00025,2]
[322701392,1713226238304,-150.0,0.00025202,2]
[322701394,1713226238313,-309.59752322,0.00025426,2]
[322701396,1713226238322,-166.85996772,0.00026016,2]
[322701398,1713226238331,-587.0,0.00026318,2]
[322701400,1713226238339,-797.7884912,0.00026746,3]
[322701402,1713226238349,-587.0,0.00026984,2]
[322701404,1713226238359,-13645.32635987,0.00027,2]
[322701406,1713226238368,-166.85996772,0.00027356,2]
[322701408,1713226238378,-181.435819,0.00027397,2]
[322701410,1713226238387,-362.432637,0.00027397,2]
[322701412,1713226238396,-166.666666,0.00027397,2]
[322701414,1713226238405,-973.82372611,0.000274,2]
[322701416,1713226238414,-38181.14719754,0.000275,2]
[322701418,1713226238423,-1043.9051472,0.00027867,2]
[322701420,1713226238432,-166.666666,0.00028038,2]
[322701422,1713226238441,-823.0,0.0002859,2]
[322701424,1713226238451,-166.666666,0.00028679,2]
[322701426,1713226238460,-166.85996772,0.00028696,2]
[322701428,1713226238468,-1043.90514717,0.00028889,2]
[322701430,1713226238477,-882.33479028,0.00029134,2]
[322701431,1713226238486,-166.666666,0.00029321,2]
[322701432,1713226238495,-823.0,0.00029682,2]
[322701433,1713226238504,-1043.90514717,0.00029911,2]
[322701434,1713226238512,-166.666666,0.00029962,2]
[322701435,1713226238522,-773.63158461,0.0003,4]
[322701436,1713226238531,-4484.72112798,0.0003,5]
[322701437,1713226238539,-160.0,0.0003,2]
[322701438,1713226238548,-153.0,0.0003,2]
[322701440,1713226238558,-166.85996772,0.00030036,2]
[322701441,1713226238567,-500.0,0.00030136,2]
[322701443,1713226238576,-500.0,0.00030136,2]
[322701444,1713226238585,-539.95891349,0.00030136,2]
[322701445,1713226238594,-500.0,0.00030136,2]
[322701446,1713226238603,-500.0,0.00030136,2]
[322701447,1713226238614,-820.54,0.00030136,2]
[322701448,1713226238623,-500.0,0.00030136,2]
[322701449,1713226238632,-500.0,0.00030136,2]
[322701450,1713226238641,-500.0,0.00030136,2]
[322701451,1713226238650,-500.0,0.00030136,2]
[322701452,1713226238658,-500.0,0.00030136,2]
[322701453,1713226238667,-500.0,0.00030136,2]
[322701454,1713226238676,-500.0,0.00030136,2]
[322701455,1713226238685,-500.0,0.00030136,2]
[322701456,1713226238694,-630.67273205,0.00030136,2]
[322701457,1713226238703,-704.19,0.00030136,2]
[322701458,1713226238712,-500.0,0.00030136,2]
[322701459,1713226238721,-526.66,0.00030136,2]
[322701460,1713226238731,-500.0,0.00030136,2]
[322701461,1713226238740,-500.0,0.00030136,2]
[322701462,1713226238749,-500.0,0.00030136,2]
[322701463,1713226238757,-291.96593322,0.00030136,2]
[322701464,1713226238766,-500.0,0.00030136,2]
[322701465,1713226238775,-500.0,0.00030136,2]
[322701466,1713226238784,-500.0,0.00030136,2]
[322701467,1713226238793,-500.0,0.00030136,2]
[322701468,1713226238803,-500.0,0.00030136,2]
[322701469,1713226238812,-500.0,0.00030136,2]
[322701470,1713226238821,-500.0,0.00030136,2]
[322701471,1713226238830,-500.0,0.00030136,2]
[322701472,1713226238839,-500.0,0.00030136,2]
[322701473,1713226238848,-500.0,0.00030136,2]
[322701474,1713226238858,-500.0,0.00030136,2]
[322701475,1713226238867,-500.0,0.00030136,2]
[322701476,1713226238876,-500.0,0.00030136,2]
[322701477,1713226238885,-500.0,0.00030136,2]
[322701478,1713226238895,-500.0,0.00030136,2]
[322701479,1713226238905,-500.0,0.00030136,2]
[322701480,1713226238914,-500.0,0.00030136,2]
[322701481,1713226238923,-500.0,0.00030136,2]
[322701482,1713226238932,-500.0,0.00030136,2]
[322701483,1713226238941,-560.26024271,0.00030136,2]
[322701484,1713226238950,-500.0,0.00030136,2]
[322701485,1713226238959,-500.0,0.00030136,2]
[322701486,1713226238968,-500.0,0.00030136,2]
[322701487,1713226238977,-500.0,0.00030136,2]
[322701488,1713226238986,-500.0,0.00030136,2]
[322701489,1713226238994,-500.0,0.00030136,2]
[322701490,1713226239003,-589.34,0.00030136,2]
[322701491,1713226239012,-500.0,0.00030136,2]
[322701492,1713226239021,-500.0,0.00030136,2]
[322701493,1713226239030,-500.0,0.00030136,2]
[322701494,1713226239039,-636.14631328,0.00030136,2]
[322701495,1713226239048,-500.0,0.00030136,2]
[322701496,1713226239060,-500.0,0.00030136,2]
[322701497,1713226239069,-500.0,0.00030136,2]
[322701498,1713226239078,-500.0,0.00030136,2]
[322701499,1713226239087,-876.01,0.00030136,2]
[322701500,1713226239096,-4223.41,0.00030136,2]
[322701501,1713226239106,-500.0,0.00030136,2]
[322701502,1713226239115,-550.02,0.00030136,2]
[322701503,1713226239126,-551.25,0.00030136,2]
[322701504,1713226239135,-6578.53,0.00030136,2]
[322701505,1713226239146,-500.0,0.00030136,2]
[322701506,1713226239155,-500.0,0.00030136,2]
[322701507,1713226239165,-500.0,0.00030136,2]
[322701508,1713226239175,-500.0,0.00030136,2]
[322701509,1713226239184,-500.0,0.00030136,2]
[322701510,1713226239194,-500.0,0.00030136,2]
[322701511,1713226239203,-500.0,0.00030136,2]
[322701512,1713226239213,-500.0,0.00030136,2]
[322701513,1713226239222,-990.85,0.00030136,2]
[322701514,1713226239232,-500.0,0.00030136,2]
[322701515,1713226239241,-500.0,0.00030136,2]
[322701516,1713226239252,-500.0,0.00030136,2]
[322701517,1713226239264,-500.0,0.00030136,2]
[322701518,1713226239273,-500.0,0.00030136,2]
[322701519,1713226239283,-894.93,0.00030136,2]
[322701521,1713226239293,-500.0,0.00030136,2]
[322701524,1713226239303,-341.44788873,0.00030136,2]
[322701526,1713226239313,-500.0,0.00030136,2]
[322701528,1713226239323,-500.0,0.00030136,2]
[322701530,1713226239332,-500.0,0.00030136,2]
[322701532,1713226239342,-500.0,0.00030136,2]
[322701534,1713226239351,-870.15,0.00030136,2]
[322701536,1713226239363,-516.80034619,0.00030136,2]
[322701538,1713226239374,-500.0,0.00030136,2]
[322701540,1713226239383,-500.0,0.00030136,7]
[322701542,1713226239392,-500.0,0.00030136,7]
[322701544,1713226239401,-500.0,0.00030136,7]
[322701546,1713226239411,-500.0,0.00030136,7]
[322701548,1713226239420,-500.0,0.00030136,7]
[322701550,1713226239430,-688.75,0.00030136,2]
[322701552,1713226239439,-500.0,0.00030136,2]
[322701554,1713226239448,-500.0,0.00030136,2]
[322701557,1713226239457,-500.0,0.00030136,2]
[322701560,1713226239466,-3669.11,0.00030136,2]
[322701563,1713226239476,-3669.11,0.00030136,2]
[322701566,1713226239485,-3669.11,0.00030136,2]
[322701568,1713226239494,-3669.11,0.00030136,2]
[322701570,1713226239504,-3669.11,0.00030136,2]
[322701572,1713226239513,-3669.11,0.00030136,2]
[322701574,1713226239523,-963.45,0.00030136,2]
[322701576,1713226239532,-500.0,0.00030136,2]
[322701578,1713226239541,-500.0,0.00030136,2]
[322701580,1713226239550,-500.0,0.00030136,2]
[322701582,1713226239559,-500.0,0.00030136,2]
[322701584,1713226239568,-500.0,0.00030136,2]
[322701586,1713226239578,-1920.87,0.00030136,2]
[322701588,1713226239587,-500.0,0.00030136,2]
[322701590,1713226239596,-154.87609912,0.00030136,2]
[322701592,1713226239607,-223.86316844,0.00030136,2]
[322701594,1713226239616,-555.1,0.00030136,2]
[322701596,1713226239625,-500.0,0.00030136,2]
[322701598,1713226239634,-763.43,0.00030136,2]
[322701600,1713226239644,-832.08,0.00030136,2]
[322701601,1713226239653,-500.0,0.00030136,2]
[322701602,1713226239663,-500.0,0.00030136,2]
[322701603,1713226239672,-1030.38,0.00030136,2]
[322701604,1713226239681,-748.65,0.00030136,2]
[322701605,1713226239690,-500.0,0.00030136,2]
[322701607,1713226239700,-500.0,0.00030136,2]
[322701609,1713226239709,-514.79,0.00030136,2]
[322701611,1713226239719,-500.0,0.00030136,2]
[322701613,1713226239728,-500.0,0.00030136,2]
[322701615,1713226239737,-1540.0,0.00030136,2]
[322701617,1713226239746,-500.0,0.00030136,2]
[322701619,1713226239755,-594.7,0.00030136,2]
[322701621,1713226239764,-1995.43,0.00030136,2]
[322701623,1713226239774,-833.27,0.00030136,2]
[322701625,1713226239784,-500.0,0.00030136,2]
[322701627,1713226239793,-500.0,0.00030136,2]
[322701629,1713226239802,-500.0,0.00030136,2]
[322701631,1713226239812,-500.0,0.00030136,2]
[322701633,1713226239821,-523.71,0.00030136,2]
[322701635,1713226239830,-500.0,0.00030136,2]
[322701637,1713226239840,-623.29,0.00030136,2]
[322701639,1713226239849,-500.0,0.00030136,2]
[322701641,1713226239860,-500.0,0.00030136,2]
[322701643,1713226239870,-500.0,0.00030136,2]
[322701645,1713226239879,-500.0,0.00030136,2]
[322701647,1713226239888,-792.84,0.00030136,2]
[322701649,1713226239897,-500.0,0.00030409,7]
[322701651,1713226239906,-3669.11,0.00030409,7]
[322701653,1713226239915,-500.0,0.0003041,7]
[322701655,1713226239925,-500.0,0.0003041,7]
[322701657,1713226239934,-500.0,0.0003041,7]
[322701659,1713226239944,-820.54,0.0003041,7]
[322701661,1713226239953,-500.0,0.0003041,7]
[322701663,1713226239962,-500.0,0.0003041,7]
[322701664,1713226239971,-500.0,0.0003041,7]
[322701666,1713226239980,-500.0,0.0003041,7]
[322701668,1713226239989,-500.0,0.0003041,7]
[322701670,1713226239999,-500.0,0.0003041,7]
[322701672,1713226240008,-500.0,0.0003041,7]
[322701674,1713226240017,-704.19,0.0003041,7]
[322701675,1713226240026,-500.0,0.0003041,7]
[322701677,1713226240036,-526.66,0.0003041,7]
[322701679,1713226240045,-500.0,0.0003041,7]
[322701681,1713226240055,-177.1365276,0.0003041,7]
[322701683,1713226240068,-500.0,0.0003041,7]
[322701685,1713226240077,-500.0,0.0003041,7]
[322701687,1713226240086,-500.0,0.0003041,7]
[322701689,1713226240094,-500.0,0.0003041,7]
[322701691,1713226240104,-500.0,0.0003041,7]
[322701693,1713226240114,-500.0,0.0003041,7]
[322701695,1713226240123,-500.0,0.0003041,7]
[322701697,1713226240132,-500.0,0.0003041,7]
[322701699,1713226240143,-564.15001578,0.0003041,7]
[322701701,1713226240152,-500.0,0.0003041,7]
[322701703,1713226240161,-500.0,0.0003041,7]
[322701705,1713226240170,-500.0,0.0003041,7]
[322701707,1713226240180,-500.0,0.0003041,7]
[322701709,1713226240189,-500.0,0.0003041,7]
[322701711,1713226240198,-500.0,0.0003041,7]
[322701713,1713226240207,-500.0,0.0003041,7]
[322701715,1713226240216,-500.0,0.0003041,7]
[322701716,1713226240225,-500.0,0.0003041,7]
[322701718,1713226240235,-500.0,0.0003041,7]
[322701720,1713226240245,-500.0,0.0003041,7]
[322701722,1713226240254,-500.0,0.0003041,7]
[322701724,1713226240263,-500.0,0.0003041,7]
[322701726,1713226240273,-589.34,0.0003041,7]
[322701728,1713226240282,-500.0,0.0003041,7]
[322701730,1713226240291,-500.0,0.0003041,7]
[322701732,1713226240301,-500.0,0.0003041,7]
[322701734,1713226240310,-500.0,0.0003041,7]
[322701736,1713226240319,-500.0,0.0003041,7]
[322701738,1713226240328,-500.0,0.0003041,7]
[322701740,1713226240336,-500.0,0.0003041,7]
[322701742,1713226240345,-876.01,0.0003041,7]
[322701744,1713226240354,-4223.41,0.0003041,7]
[322701746,1713226240363,-500.0,0.0003041,7]
[322701748,1713226240372,-550.02,0.0003041,7]
[322701750,1713226240381,-551.25,0.0003041,7]
[322701752,1713226240391,-6578.53,0.0003041,7]
[322701754,1713226240400,-500.0,0.0003041,7]
[322701757,1713226240411,-500.0,0.0003041,7]
[322701759,1713226240420,-500.0,0.0003041,7]
[322701761,1713226240430,-500.0,0.0003041,7]
[322701763,1713226240439,-500.0,0.0003041,7]
[322701765,1713226240449,-500.0,0.0003041,7]
[322701767,1713226240458,-523.59459328,0.0003041,7]
[322701769,1713226240467,-500.0,0.0003041,7]
[322701771,1713226240476,-990.85,0.0003041,7]
[322701773,1713226240485,-500.0,0.0003041,7]
[322701775,1713226240495,-500.0,0.0003041,7]
[322701777,1713226240504,-500.0,0.0003041,7]
[322701779,1713226240514,-894.93,0.0003041,7]
[322701781,1713226240523,-500.0,0.0003041,7]
[322701783,1713226240532,-500.0,0.0003041,7]
[322701785,1713226240541,-500.0,0.0003041,7]
[322701786,1713226240550,-500.0,0.0003041,7]
[322701788,1713226240559,-238.07850354,0.0003041,7]
[322701790,1713226240568,-870.15,0.0003041,7]
[322701792,1713226240577,-500.0,0.0003041,7]
[322701794,1713226240586,-688.75,0.0003041,7]
[322701796,1713226240596,-500.0,0.0003041,7]
[322701798,1713226240606,-500.0,0.0003041,7]
[322701800,1713226240615,-500.0,0.0003041,7]
[322701802,1713226240624,-963.45,0.0003041,7]
[322701804,1713226240633,-500.0,0.0003041,7]
[322701806,1713226240642,-500.0,0.0003041,7]
[322701808,1713226240652,-500.0,0.0003041,7]
[322701810,1713226240661,-500.0,0.0003041,7]
[322701812,1713226240670,-500.0,0.0003041,7]
[322701814,1713226240679,-1920.87,0.0003041,7]
[322701816,1713226240688,-500.0,0.0003041,7]
[322701818,1713226240697,-555.1,0.0003041,7]
[322701819,1713226240707,-500.0,0.0003041,7]
[322701820,1713226240716,-763.43,0.0003041,7]
[322701821,1713226240726,-832.08,0.0003041,7]
[322701822,1713226240736,-500.0,0.0003041,7]
[322701823,1713226240745,-500.0,0.0003041,7]
[322701825,1713226240755,-1030.38,0.0003041,7]
[322701827,1713226240764,-748.65,0.0003041,7]
[322701829,1713226240773,-500.0,0.0003041,7]
[322701831,1713226240782,-500.0,0.0003041,7]
[322701833,1713226240791,-514.79,0.0003041,7]
[322701835,1713226240800,-581.6014806,0.0003041,7]
[322701837,1713226240810,-500.0,0.0003041,7]
[322701839,1713226240819,-1540.0,0.0003041,7]
[322701841,1713226240829,-395.04351217,0.0003041,7]
[322701843,1713226240839,-594.7,0.0003041,7]
[322701845,1713226240848,-1995.43,0.0003041,7]
[322701847,1713226240858,-833.27,0.0003041,7]
[322701848,1713226240867,-500.0,0.0003041,7]
[322701850,1713226240877,-500.0,0.0003041,7]
[322701853,1713226240887,-500.0,0.0003041,7]
[322701855,1713226240896,-500.0,0.0003041,7]
[322701857,1713226240906,-523.71,0.0003041,7]
[322701858,1713226240915,-500.0,0.0003041,7]
[322701860,1713226240925,-623.29,0.0003041,7]
[322701862,1713226240934,-500.0,0.0003041,7]
[322701864,1713226240943,-500.0,0.0003041,7]
[322701866,1713226240952,-500.0,0.0003041,7]
[322701868,1713226240961,-792.84,0.0003041,7]
[322701870,1713226240971,-160.0,0.00030411,2]
[322701872,1713226240980,-166.666666,0.00030603,2]
[322701874,1713226240990,-500.0,0.0003068,7]
[322701876,1713226241000,-242.59592145,0.00030683,2]
[322701878,1713226241011,-500.0,0.00030683,7]
[322701880,1713226241020,-3669.11,0.00030683,7]
[322701882,1713226241030,-1063.41310213,0.00030684,4]
[322701884,1713226241039,-500.0,0.00030684,7]
[322701886,1713226241049,-820.54,0.00030684,7]
[322701888,1713226241063,-500.0,0.00030684,7]
[322701890,1713226241072,-500.0,0.00030684,7]
[322701892,1713226241081,-186.04211178,0.00030684,7]
[322702023,1713226246047,-287.26270478,0.00030136,2]
[322702071,1713226661215,820.43,0.00038677,40]
[322702072,1713226661531,820.43,0.00038677,40]
[322702073,1713226661788,820.43,0.00038677,40]
[322702074,1713226662072,820.43,0.00038677,40]
[322702075,1713226662355,820.43,0.00038677,40]
[322702076,1713226662608,820.43,0.00038677,40]
[322702077,1713226662871,820.43,0.00038677,40]
[322702078,1713226663143,820.43,0.00038677,40]
[322702079,1713226663406,820.43,0.00038677,40]
[322702080,1713226663654,820.43,0.00038677,40]
[322702081,1713226663931,820.43,0.00038677,40]
[322702082,1713226664095,500.0,0.00038677,40]
[322702083,1713226664211,820.43,0.00038677,40]
[322702084,1713226664549,500.0,0.00038677,40]
[322702085,1713226664587,820.43,0.00038677,40]
[322702086,1713226664806,820.43,0.00038677,40]
[322702087,1713226665060,820.43,0.00038677,40]
[322702088,1713226665319,820.43,0.00038677,40]
[322702089,1713226665617,820.43,0.00038677,40]
[322702090,1713226665985,477.24550864,0.00038677,40]
[322702091,1713226666226,820.43,0.00038677,40]
[322702092,1713226666547,820.43,0.00038677,40]
[322702093,1713226666770,820.43,0.00038677,40]
[322702094,1713226667023,4889.71,0.00038677,40]
[322702095,1713226667167,820.43,0.00038677,40]
[322702096,1713226667306,4889.71,0.00038677,40]
[322702097,1713226667426,820.43,0.00038677,40]
[322702098,1713226667567,4889.71,0.00038677,40]
[322702099,1713226667671,820.43,0.00038677,40]
[322702100,1713226667918,820.5719685,0.00038677,40]
[322702101,1713226667948,4889.71,0.00038677,40]
[322702102,1713226668218,4889.71,0.00038677,40]
[322702103,1713226668495,4889.71,0.00038677,40]
[322702104,1713226668790,4889.71,0.00038677,40]
[322702105,1713226669403,4889.71,0.00038677,40]
[322702106,1713226669681,4889.71,0.00038677,40]
[322702107,1713226670005,4889.71,0.00038677,40]
[322702108,1713226670309,4889.71,0.00038677,40]
[322702109,1713226670583,4889.71,0.00038677,40]
[322702110,1713226670867,4889.71,0.00038677,40]
[322702111,1713226671136,4889.71,0.00038677,40]
[322702112,1713226671423,4889.71,0.00038677,40]
[322702113,1713226671734,4889.71,0.00038677,40]
[322702114,1713226672357,4889.71,0.00038677,40]
[322702115,1713226672623,4889.71,0.00038677,40]
[322702116,1713226673248,4889.71,0.00038677,40]
[322702117,1713226673508,4889.71,0.00038677,40]
[322702118,1713226673830,4889.71,0.00038677,40]
[322702119,1713226674072,4889.71,0.00038677,40]
[322702120,1713226674367,4889.71,0.00038677,40]
[322702121,1713226674635,4889.74373036,0.00038677,40]
[322702122,1713226675266,777.19,0.00038677,40]
[322702123,1713226675440,500.0,0.00038677,40]
[322702124,1713226675521,777.19,0.00038677,40]
[322702125,1713226675802,777.19,0.00038677,40]
[322702126,1713226675900,500.0,0.00038677,40]
[322702127,1713226676052,777.19,0.00038677,40]
[322702128,1713226676244,500.0,0.00038677,40]
[322702129,1713226676310,777.19,0.00038677,40]
[322702130,1713226676509,500.0,0.00038677,40]
[322702131,1713226676541,500.0,0.00038677,40]
[322702132,1713226676579,777.19,0.00038677,40]
[322702133,1713226676773,500.0,0.00038677,40]
[322702134,1713226676803,500.0,0.00038677,40]
[322702135,1713226676874,777.19,0.00038677,40]
[322702136,1713226677045,500.0,0.00038677,40]
[322702137,1713226677120,500.0,0.00038677,40]
[322702138,1713226677151,777.19,0.00038677,40]
[322702139,1713226677335,500.0,0.00038677,40]
[322702140,1713226677394,500.0,0.00038677,40]
[322702141,1713226677426,777.19,0.00038677,40]
[322702142,1713226677603,500.0,0.00038677,40]
[322702143,1713226677671,777.19,0.00038677,40]
[322702144,1713226677702,500.0,0.00038677,40]
[322702145,1713226677993,500.0,0.00038677,40]
[322702146,1713226678030,777.19,0.00038677,40]
[322702147,1713226678061,500.0,0.00038677,40]
[322702148,1713226678144,500.0,0.00038677,40]
[322702149,1713226678184,777.19,0.00038677,40]
[322702150,1713226678212,500.0,0.00038677,40]
[322702151,1713226678438,500.0,0.00038677,40]
[322702152,1713226678466,777.19,0.00038677,40]
[322702153,1713226678502,500.0,0.00038677,40]
[322702154,1713226678714,777.19,0.00038677,40]
[322702155,1713226678742,500.0,0.00038677,40]
[322702156,1713226678914,223.89043804,0.00038677,40]
[322702157,1713226678976,777.19,0.00038677,40]
[322702158,1713226679005,500.0,0.00038677,40]
[322702159,1713226679233,500.0,0.00038677,40]
[322702160,1713226679263,777.19,0.00038677,40]
[322702161,1713226679497,500.0,0.00038677,40]
[322702162,1713226679542,777.19,0.00038677,40]
[322702163,1713226679741,500.0,0.00038677,40]
[322702164,1713226679942,777.19,0.00038677,40]
[322702165,1713226680252,777.19,0.00038677,40]
[322702166,1713226680567,777.19,0.00038677,40]
[322702167,1713226680732,500.0,0.00038677,40]
[322702168,1713226680835,777.19,0.00038677,40]
[322702169,1713226681041,500.0,0.00038677,40]
[322702170,1713226681113,777.19,0.00038677,40]
[322702171,1713226681350,500.0,0.00038677,40]
[322702172,1713226681381,777.19,0.00038677,40]
[322702173,1713226681611,500.0,0.00038677,40]
[322702174,1713226681930,500.0,0.00038677,40]
[322702175,1713226682016,777.3,0.00038677,40]
[322702176,1713226682197,500.0,0.00038677,40]
[322702177,1713226682495,500.0,0.00038677,40]
[322702178,1713226682749,500.0,0.00038677,40]
[322702179,1713226683091,500.0,0.00038677,40]
[322702180,1713226683374,500.0,0.00038677,40]
[322702181,1713226683632,500.0,0.00038677,40]
[322702182,1713226684004,500.0,0.00038677,40]
[322702183,1713226684179,500.0,0.00038677,40]
[322702184,1713226684446,500.0,0.00038677,40]
[322702185,1713226685089,500.0,0.00038677,40]
[322702186,1713226685352,500.0,0.00038677,40]
[322702187,1713226685384,500.0,0.00038677,40]
[322702188,1713226685613,235.30540569,0.00038677,40]
[322702189,1713226685646,500.0,0.00038677,40]
[322702190,1713226685676,500.0,0.00038677,40]
[322702191,1713226685955,500.0,0.00038677,40]
[322702192,1713226686170,500.0,0.00038677,40]
[322702193,1713226686228,339.24,0.00038677,40]
[322702194,1713226689918,1474.39,0.00038677,40]
[322702195,1713226690195,1474.39,0.00038677,40]
[322702196,1713226690470,1474.39,0.00038677,40]
[322702197,1713226690719,1474.39,0.00038677,40]
[322702198,1713226690979,1474.39,0.00038677,40]
[322702199,1713226691273,1474.39,0.00038677,40]
[322702200,1713226691522,1474.39,0.00038677,40]
[322702201,1713226692159,1474.39,0.00038677,40]
[322702202,1713226692539,1474.39,0.00038677,40]
[322702203,1713226692801,1474.39,0.00038677,40]
[322702204,1713226693143,1474.39,0.00038677,40]
[322702205,1713226693408,1474.39,0.00038677,40]
[322702206,1713226693685,1474.39,0.00038677,40]
[322702207,1713226693956,1474.39,0.00038677,40]
[322702208,1713226694190,500.0,0.00038677,40]
[322702209,1713226694223,1474.39,0.00038677,40]
[322702210,1713226694496,1474.39,0.00038677,40]
[322702211,1713226694685,252.02198214,0.00038677,40]